Cogmind - Beta 9 @@@ ROGUE MODE // 2019.10.28 @ 23:32:19 Player: Trione Result: Destroyed by G-73 Enforcer with Phase Gun Performance ------------- Evolutions (6) 3000 Regions Visited (19) 3800 Robots Destroyed (288) 1440 Value Destroyed (13362) 13362 Prototype IDs (33) 660 Alien Tech Used (0) 0 Bonus (5762) 5762 TOTAL SCORE: 28024 Bonus ------- High Alert Combat Kills 2281 Follower Combat Kills 857 Entered Garrisons 1000 Used RIF Installer 2000 Aligned with FarCom 300 Friendly Fire -676 Cogmind --------- Core Integrity 0/1150 Matter 155/300 Energy 36/100 System Corruption 12% Temperature Cool (9) Location -4/Factory Parts ------- Power (1) Propulsion (2) Utility (14) Quantum Capacitor Weapon (2) Force Lance Inventory (4) Armored Huge Wheel System Backup Module Heavy Neutron Cannon Peak State ------------ Power Micro Fission Core Propulsion Improved Heavy Siege Treads Utility Improved Coolant Injector High-capacity Storage Unit High-capacity Storage Unit Lightpack 2.0 Experimental Sensor Array Advanced Signal Interpreter Reflective Plating Damper Plating Improved Force Field Hacking Suite Relay Coupler [Brawler] Weapon Gauss Rifle Hypervelocity Coil Gun Inventory Micro Fission Core Antimatter Reactor Armored Huge Wheel Armored Huge Wheel Improved Coolant Injector Large Storage Unit Energy Well Modified TNC Improved Armor Integrity Analyzer Advanced ECM Suite Improved Medium Armor Plating Reflective Plating Reflective Plating Improved Force Field Advanced Hacking Suite Relay Coupler [NC] Relay Coupler [NC] Relay Coupler [Grunt] Relay Coupler [Brawler] Relay Coupler [Duelist] Relay Coupler [Sentry] Relay Coupler [Hunter] Relay Coupler [Hunter] System Backup Module Lightning Gun High-powered Shock Rifle High-powered Shock Rifle Tesla Rifle Improved Arc Projector Improved EM Pulse Cannon KE Penetrator Enhanced Coil Gun Mini Grenade Launcher Improved Remote Datajack Improved Plasma Cutter Axe Great Axe [Rating: 120] Favorites ----------- Power Deuterium Engine Engine Deuterium Engine Power Core Micro Fission Core Reactor Antimatter Reactor Propulsion Armored Huge Wheel Treads Light Treads Wheel Armored Huge Wheel Hover Unit Aerolev Unit Utility High-capacity Storage Unit Device Experimental Sensor Array Storage High-capacity Storage Unit Processor Advanced Signal Interpreter Hackware Relay Coupler [NC] Protection Layered Light Armor Plating Weapon Axe Energy Gun Heavy Particle Gun Energy Cannon Improved EM Pulse Cannon Ballistic Gun Heavy Assault Rifle Ballistic Cannon Gauss Cannon Launcher Mini Grenade Launcher Special Weapon Remote Datajack Slashing Weapon Axe Piercing Weapon Force Lance Special Melee Weapon Improved Datajack Build | -11 -10 -10 -10 -9 -8 -8 -8 -8 -7 -7 -7 -7 -6 -6 -5 -5 -4 -4 -4 ------- Run | Scr Mat Min Exi Min Mat Gar Mat Gar Fac Was Fac Gar Fac Gar Fac Gar Fac Was Fac Slots Evolved 12 | . . . . . 4 . . . 2 . . . 2 . 2 . 2 . . Power . | . . . . . . . . . . . . . . . . . . . . Propulsion . | . . . . . . . . . . . . . . . . . . . . Utility 12 | . . . . . 4 . . . 2 . . . 2 . 2 . 2 . . Weapon . | . . . . . . . . . . . . . . . . . . . . Parts Attached 558 | 7 14 3 2 8 47 12 15 25 40 12 26 25 46 32 50 50 30 7 107 Power 13 | 1 2 . . . 1 . . 1 . . 1 . 1 . 1 1 1 . 3 Engine 6 | 1 2 . . . 1 . . 1 . . 1 . . . . . . . . Core 6 | . . . . . . . . . . . . . 1 . 1 1 1 . 2 Reactor 1 | . . . . . . . . . . . . . . . . . . . 1 Propulsion 66 | 2 4 3 . 1 8 . . . 1 . . 1 5 2 8 14 2 . 15 Treads 31 | . 4 1 . . 4 . . . . . . 1 2 1 4 7 1 . 6 Leg . | . . . . . . . . . . . . . . . . . . . . Wheel 33 | 2 . 2 . 1 3 . . . 1 . . . 3 1 4 7 1 . 8 Hover 2 | . . . . . 1 . . . . . . . . . . . . . 1 Flight . | . . . . . . . . . . . . . . . . . . . . Utility 226 | 2 4 . 2 . 8 5 4 9 21 6 17 9 31 13 23 9 15 4 44 Device 74 | . . . . . 3 . 1 3 9 . 7 2 11 1 11 2 4 2 18 Storage 35 | 2 4 . 2 . 2 2 1 4 . 1 . . 3 1 . 1 3 . 9 Processor 5 | . . . . . . . . . 1 . 1 . 1 . . 1 . . 1 Hackware 28 | . . . . . . . 1 . 2 2 . 3 2 4 3 1 2 . 8 Protection 84 | . . . . . 3 3 1 2 9 3 9 4 14 7 9 4 6 2 8 Artifact . | . . . . . . . . . . . . . . . . . . . . Weapon 253 | 2 4 . . 7 30 7 11 15 18 6 8 15 9 17 18 26 12 3 45 Energy Gun 64 | . . . . . 13 2 3 5 2 2 . 8 . 5 1 13 3 . 7 Energy Cannon 6 | . . . . . . 1 . . . . . . . . . . 1 . 4 Ballistic Gun 59 | 2 3 . . 3 6 . 2 3 3 1 2 1 4 4 8 5 2 1 9 Ballistic Cannon 13 | . . . . . 1 1 1 1 1 1 1 . 1 . . . . . 5 Launcher 37 | . 1 . . 2 4 2 1 5 2 . 3 5 . 4 4 2 . . 2 Special Weapon 21 | . . . . . . . . . 2 2 . 1 . 2 2 1 3 2 6 Impact Weapon . | . . . . . . . . . . . . . . . . . . . . Slashing Weapon 49 | . . . . 2 6 1 3 1 7 . 2 . 4 2 3 5 3 . 10 Piercing Weapon 2 | . . . . . . . . . . . . . . . . . . . 2 Special Melee Weapon 2 | . . . . . . . 1 . 1 . . . . . . . . . . Unidentified Prototypes 11 | . . . . . 9 . . . . . . . . . . 1 . 1 . Parts Lost 73 | . 1 . . . 1 1 . 6 . 1 2 3 1 6 5 8 2 . 36 Power 6 | . 1 . . . . . . 1 . . 1 . 1 . . . . . 2 Propulsion 3 | . . . . . . . . . . . . . . . . 1 . . 2 Utility 43 | . . . . . . 1 . 2 . . 1 3 . 6 3 3 2 . 22 Weapon 21 | . . . . . 1 . . 3 . 1 . . . . 2 4 . . 10 Highest Loss Streak 28 | . 1 . . . 1 1 . 4 . 1 1 2 1 4 2 7 1 . 28 Average Slot Usage (%) 89 | . 99 100 100 100 95 99 100 99 93 76 91 88 84 80 84 73 85 83 86 Engine 5 | . 13 14 14 14 9 9 9 9 7 7 7 7 3 . . . . . . Core 2 | . . . . . . . . . . . . . 2 6 5 4 5 5 4 Treads 4 | . 26 17 . . 16 . . . . . . 5 . 1 1 2 . . . Wheel 7 | . 1 10 28 28 1 18 18 18 8 7 7 1 5 4 3 2 4 5 4 Device 7 | . . . . . 6 9 8 6 6 1 7 5 10 3 9 8 11 9 9 Storage 23 | . 28 28 28 28 34 22 36 28 23 22 23 23 17 15 17 17 20 26 23 Processor 4 | . . . . . . . . . 7 3 6 7 6 6 5 6 5 5 6 Hackware 7 | . . . . . . . . . 2 9 6 4 11 21 22 11 10 10 16 Protection 9 | . . . . . 8 21 9 19 20 6 15 17 10 6 4 5 15 9 8 Energy Gun 3 | . . . . . 8 7 7 10 . 5 4 7 . 2 . 3 1 . 1 Ballistic Gun 5 | . 27 28 28 22 2 . 2 4 2 1 3 1 1 3 5 2 1 . . Special Weapon 1 | . . . . . . . . . . 7 1 3 2 1 . . 1 9 1 Slashing Weapon 3 | . . . . 5 6 2 6 1 9 . 4 . 5 4 2 1 2 . 4 Naked Turns . | . . . . . . . . . . . . . . . . . . . . Heaviest Build 182 | 16 43 43 75 75 139 136 123 123 127 141 109 115 117 94 81 130 174 174 182 Greatest Support 75 | 26 40 40 20 20 40 24 24 24 28 28 28 70 70 70 75 75 75 28 75 Greatest Overweight (x) 6 | . 1 2 3 3 5 5 5 5 5 5 3 4 4 3 2 4 6 6 6 Average Overweight (x) 3 | . . 1 2 3 3 3 4 3 4 4 3 1 2 1 1 2 4 5 4 Largest Inventory Capacity 46 | 8 16 16 20 20 34 34 32 32 28 28 26 26 46 38 38 40 40 30 32 Average Capacity 28 | 6 13 16 18 20 32 21 32 25 28 26 26 26 29 33 38 38 34 30 30 Most Carried 40 | 8 16 16 20 20 34 34 32 29 28 28 26 26 33 33 38 40 40 30 32 Average Carried 27 | 5 11 15 18 19 30 20 31 23 27 24 25 25 29 30 36 36 33 29 29 Final Capacity 40 | . . . . . . . . . . . . . . . 38 . 40 . 4 Final Carried 40 | . . . . . . . . . . . . . . . 38 . 40 . 4 Class Distribution -------------------- 52% | Hauler-Mutant 29% | Bothacker-Mutant 11% | Mutant 6% | Botlord-Mutant Dominant Class ---------------- Mutant | -10/Materials Mutant | -10/Mines Hauler-Mutant | -10/Exiles Hauler-Mutant | -9/Mines Hauler-Mutant | -8/Materials Mutant | -8/Garrison Hauler-Mutant | -8/Materials Hauler-Mutant | -8/Garrison Hauler-Mutant | -7/Factory Hauler-Mutant | -7/Waste Hauler-Mutant | -7/Factory Hauler-Mutant | -7/Garrison Hauler-Mutant | -6/Factory Hauler-Mutant | -6/Garrison Bothacker-Mutant | -5/Factory Hauler-Mutant | -5/Garrison Botlord-Mutant | -4/Factory Bothacker-Mutant | -4/Waste Bothacker-Mutant | -4/Factory Resources | -11 -10 -10 -10 -9 -8 -8 -8 -8 -7 -7 -7 -7 -6 -6 -5 -5 -4 -4 -4 ----------- Run | Scr Mat Min Exi Min Mat Gar Mat Gar Fac Was Fac Gar Fac Gar Fac Gar Fac Was Fac Matter Collected 9256 | 290 358 72 . 144 619 269 161 497 474 349 411 398 857 648 882 905 406 128 1388 Remotely . | . . . . . . . . . . . . . . . . . . . . Salvage Created 13239 | 110 452 41 . 298 1100 293 335 626 397 875 382 425 989 766 1209 1452 260 853 2376 Parts 622 | 5 27 7 . 16 67 6 16 27 32 9 19 21 48 40 69 57 11 26 119 Haulers Intercepted 7 | . 2 . . . 5 . . . . . . . . . . . . . . Recyclers Shooed 7 | . 1 1 . . . . . . . . . . 2 . . . 1 . 2 Parts Field Recycled . | . . . . . . . . . . . . . . . . . . . . Retrieved Matter . | . . . . . . . . . . . . . . . . . . . . Parts Self-Destructed . | . . . . . . . . . . . . . . . . . . . . Prevented . | . . . . . . . . . . . . . . . . . . . . Kills | -11 -10 -10 -10 -9 -8 -8 -8 -8 -7 -7 -7 -7 -6 -6 -5 -5 -4 -4 -4 ------- Run | Scr Mat Min Exi Min Mat Gar Mat Gar Fac Was Fac Gar Fac Gar Fac Gar Fac Was Fac Combat Hostiles Destroyed 219 | . 7 . . 4 23 7 6 18 6 4 12 16 10 20 20 28 5 . 33 Melee 23 | . . . . . 4 . . . 5 . 1 . 1 . . 2 . . 10 Guns 86 | . 6 . . 1 11 2 6 8 . 4 4 1 7 4 12 14 2 . 4 Cannons 9 | . . . . . 1 . . . . . . . . . . . . . 8 AOE 82 | . 1 . . 3 7 3 . 8 . . 7 13 2 15 8 4 3 . 8 Classes Destroyed 17 | 2 6 . . . 3 1 . . 1 1 1 . . 1 . . . . 1 Worker 18 | . 1 . . 3 2 . . . 1 . . . 4 . 4 . . . 3 Builder 12 | . 1 1 . . . . . . . . . . 2 . 1 . . . 7 Tunneler 3 | 1 . 1 . 1 . . . . . . . . . . . . . . . Hauler 7 | . 2 . . . 5 . . . . . . . . . . . . . . Recycler 12 | 1 . . . 1 1 . . . . . . . 4 . . . . . 5 Mechanic 1 | . . . . . . . . . . . . . . . . . . . 1 Operator 4 | . 1 . . . . . . . 1 . . . 2 . . . . . . Watcher 10 | . 1 . . . 1 1 1 . 2 . . . . . 1 1 . . 2 Swarmer 56 | . . . . . 10 . . 4 . . 4 10 5 10 . 8 . . 5 Grunt 96 | . 7 . . 4 7 3 4 12 . . 6 7 3 7 11 15 3 . 7 Brawler 2 | . . . . . 1 . . . . . . . . . . . . . 1 Duelist 2 | . . . . . . . . . . . . . . 1 1 . . . . Protector 3 | . . . . . . . . . . . 1 . . . 2 . . . . Sentry 20 | . . . . . 5 2 2 2 1 . . . . 1 2 1 . . 4 Hunter 12 | . . . . . . 2 . . 1 . . . . 2 . 2 . . 5 Programmer 26 | . . . . . . . . . 4 . 1 . 2 . 4 2 2 . 11 Compactor 4 | . . . . . . . . . . 4 . . . . . . . . . Best Kill Streak 11 | 1 3 1 . 3 4 4 2 5 2 1 7 6 5 6 11 8 3 . 9 Combat Bots Only 8 | . 2 . . 2 4 4 2 5 1 1 7 6 3 6 8 8 3 . 4 Max Kills in Single Turn 8 | 1 2 1 . 3 3 1 1 3 1 1 3 2 5 3 3 2 3 . 8 Gunslinging . | . . . . . . . . . . . . . . . . . . . . Exploded 3 | . 1 . . 2 2 1 . 3 . . 3 2 2 3 2 1 3 . 3 Melee 1 | . . . . . 1 . . . 1 . 1 . 1 . . 1 . . 1 Uniques/NPCs Destroyed . | . . . . . . . . . . . . . . . . . . . . Combat | -11 -10 -10 -10 -9 -8 -8 -8 -8 -7 -7 -7 -7 -6 -6 -5 -5 -4 -4 -4 -------- Run | Scr Mat Min Exi Min Mat Gar Mat Gar Fac Was Fac Gar Fac Gar Fac Gar Fac Was Fac Damage Taken 19966 | . 326 72 . 52 853 439 353 687 377 44 738 953 655 1479 2174 2793 467 . 7504 Core 2267 | . 41 33 . 12 79 18 76 106 29 . 179 100 27 106 89 214 12 . 1146 Absorbed by Shields 1151 | . . . . . . . . . . . . . . 2 . . 212 . 937 Reduced by Siege Mode 1233 | . . . . . . . . . . . . 4 15 60 359 278 44 . 473 Core Remaining (%) 70 | 100 . . . 65 . . . 49 . . . 56 . 84 . 69 . . . Volleys Fired 895 | 5 47 7 . 6 51 24 26 55 8 95 26 50 34 56 70 93 24 48 170 Largest 2 | 2 2 2 . 2 2 2 2 2 2 1 2 2 2 2 2 2 2 1 2 Hottest 134 | 40 50 46 . 46 116 124 110 110 110 80 108 110 76 90 108 120 129 69 134 Shots Fired 1274 | 10 93 14 . 10 96 41 50 90 11 96 36 59 54 65 113 155 44 48 189 Gun 956 | 10 91 14 . 8 85 29 49 69 6 81 24 34 36 40 92 152 40 2 94 Cannon 96 | . . . . . 5 6 . 3 2 . 4 . 11 . . . 3 6 56 Launcher 97 | . 2 . . 2 6 6 1 18 2 . 8 12 . 16 11 3 . . 10 Special 125 | . . . . . . . . . 1 15 . 13 7 9 10 . 1 40 29 Kinetic 537 | 10 91 14 . 8 33 1 9 13 2 25 21 3 47 31 87 50 36 2 54 Thermal 302 | . . . . . 57 4 40 59 . 56 7 . . . 5 16 . 40 18 Explosive 75 | . 2 . . 2 6 6 1 10 2 . 6 12 . 8 7 3 . . 10 Electromagnetic 278 | . . . . . . 30 . 8 6 . 2 31 . 17 4 86 7 6 81 Robot Hit Streak 39 | 3 7 9 . 4 16 7 17 10 9 16 5 16 16 30 30 38 12 13 39 Robot Miss Streak 7 | 3 2 1 . 3 4 3 3 4 . 4 3 2 7 1 3 2 2 2 4 Penetration Max 2 | . . . . . . . . . . . . . 1 1 1 1 2 . 1 Secondary Targets 7 | . . . . . . . 1 1 . . . . . . 2 3 . . . Max Gunslinging Chain 1 | . . . . . . . 1 1 . . . . . . 1 1 . . . Shots Hit Robots 1039 | 5 58 11 . 8 89 33 44 47 28 84 21 27 57 41 92 118 29 43 204 Core Hits 555 | 3 23 3 . 11 45 17 14 34 11 31 25 27 31 40 70 44 15 6 105 Critical Hits 52 | 1 1 . . . 1 . . . . 1 . . 4 5 9 1 9 7 13 Critical Kills 16 | 1 1 . . . . . . . . . . . 2 2 5 . 1 1 3 Critical Parts Destroyed 29 | . . . . . 1 . . . . . . . 2 3 4 1 8 1 9 Melee Attacks 529 | . . . . 11 80 1 24 . 83 . 9 . 90 1 17 13 23 . 177 Impact . | . . . . . . . . . . . . . . . . . . . . Slashing 485 | . . . . 11 80 1 19 . 83 . 9 . 90 1 17 13 23 . 138 Piercing 39 | . . . . . . . . . . . . . . . . . . . 39 Sneak Attacks 34 | . . . . 3 7 . 6 . 2 . . . 11 . . . . . 5 Combat Hostiles 1 | . . . . . 1 . . . . . . . . . . . . . . Follow-up Attacks 7 | . . . . . 2 . . . 1 . . . . . . . . . 4 Damage Inflicted 36715 | 66 928 168 . 600 2954 1265 773 1626 1064 2194 1365 1434 3092 2032 3317 3184 1011 766 8876 Guns 13950 | 66 781 168 . 44 1140 465 644 684 127 2194 315 396 595 609 1553 2464 599 60 1046 Cannons 2426 | . . . . . 58 144 . 12 28 . 52 . 167 . . . 30 65 1870 Explosions 12641 | . 147 . . 268 502 656 . 930 . . 960 1038 841 1409 1764 560 382 . 3184 Melee 6988 | . . . . 288 1254 . 129 . 909 . 38 . 1489 . . 160 . . 2721 Ramming 14 | . . . . . . . . . . . . . . 14 . . . . . Kinetic 8165 | 66 781 168 . 44 323 6 117 56 28 544 283 . 762 545 1465 731 532 60 1654 Thermal 7512 | . . . . . 875 93 527 640 . 1650 84 60 841 107 124 503 382 641 985 Explosive 9516 | . 147 . . 268 502 624 . 706 . . 754 978 . 984 1447 403 . . 2703 Electromagnetic 4520 | . . . . . . 542 . 224 127 . 206 396 . 382 281 1387 97 65 813 Impact . | . . . . . . . . . . . . . . . . . . . . Slashing 5803 | . . . . 288 1254 . 129 . 909 . 38 . 1489 . . 160 . . 1536 Piercing 1185 | . . . . . . . . . . . . . . . . . . . 1185 Highest Corruption 23 | . . . . . 3 3 5 5 . 20 23 20 1 . 8 9 . . 12 Average Corruption 7 | . . . . . 3 3 3 5 . 17 21 19 1 . 4 5 . . 1 Corruption Purged 20 | . . . . . . . . . . . 3 2 1 . 4 9 . . 1 Effects 341 | . . . . . 11 19 18 25 . 51 62 67 1 . 25 41 . . 21 Message Errors 66 | . . . . . 6 4 5 10 . 2 4 11 1 . 10 7 . . 6 Matter Fused 63 | . . . . . 1 8 5 7 . 11 9 9 . . 2 11 . . . Heat Flow Errors 19 | . . . . . 1 1 2 . . 5 6 2 . . . 2 . . . Energy Discharges 31 | . . . . . 1 3 3 . . 2 2 5 . . 5 7 . . 3 Parts Rejected 5 | . . . . . . . . . . 3 . . . . 1 1 . . . Data Loss (minor) 27 | . . . . . 1 3 . 2 . 1 5 6 . . . 4 . . 5 Data Loss (major) 13 | . . . . . . . . 2 . 2 3 4 . . . 2 . . . Misfires 19 | . . . . . . . . 3 . 4 6 4 . . 1 1 . . . Alerts 5 | . . . . . . . . . . 2 1 1 . . . . . . 1 Misdirections 21 | . . . . . . . . . . 2 14 5 . . . . . . . Targeting Errors 61 | . . . . . 1 . 3 1 . 14 11 16 . . 4 6 . . 5 Weapon Failures 11 | . . . . . . . . . . 3 1 4 . . 2 . . . 1 Overload Shots . | . . . . . . . . . . . . . . . . . . . . Overflow Damage 2037 | . 9 . . 47 244 11 78 25 97 . 24 56 669 33 . 29 . . 715 Projectiles 185 | . . . . . . 11 . . . . . . 26 . . . . . 148 Explosions 602 | . 9 . . . . . . 25 . . 24 56 217 33 . 29 . . 209 Melee 1250 | . . . . 47 244 . 78 . 97 . . . 426 . . . . . 358 Knockbacks 15 | . . . . . 1 1 . . . . . . . 1 . . . . 12 Impact 1 | . . . . . . . . . . . . . . 1 . . . . . Kinetic 13 | . . . . . 1 1 . . . . . . . . . . . . 11 Secondary 1 | . . . . . . . . . . . . . . . . . . . 1 Self-Inflicted Damage 522 | . . . . . 30 29 . 29 . . . 48 64 71 . . 117 . 134 Shots 14 | . . . . . 1 1 . 2 . . . 1 2 2 . . 2 . 3 Rammed 1 | . . . . . . . . . . . . . . 1 . . . . . Targets Rammed 1 | . . . . . . . . . . . . . . 1 . . . . . Kicked . | . . . . . . . . . . . . . . . . . . . . Crushed . | . . . . . . . . . . . . . . . . . . . . Highest Temperature 488 | . 18 4 . 4 224 306 200 220 207 409 277 488 207 318 117 461 231 128 372 Average Temperature 103 | . 8 2 . 2 60 132 30 69 65 157 96 130 67 100 35 101 109 55 99 Received Heat Transfer 3558 | . 180 36 . 27 306 72 180 333 48 . 261 252 99 252 513 396 18 . 585 Effects 21 | . . . . . . 2 . . . 6 . 7 . 2 . 3 1 . . Shutdowns 3 | . . . . . . . . . . 1 . 2 . . . . . . . Energy Bleed 6 | . . . . . . 2 . . . 2 . 1 . . . . 1 . . Interference 8 | . . . . . . . . . . 1 . 3 . 2 . 2 . . . Matter Decay 2 | . . . . . . . . . . 1 . 1 . . . . . . . Short Circuit 2 | . . . . . . . . . . 1 . . . . . 1 . . . Siege Activations 32 | . . . . . . . . . . . . 3 2 3 8 9 1 . 6 Total Turns 897 | . . . . . . . . . . . . 36 28 60 173 316 59 . 225 Longest Duration 115 | . . . . . . . . . . . . 19 23 24 43 115 59 . 94 Robots Corrupted 18 | . . . . . . 2 . 2 1 . . 2 . 1 . 7 . . 3 Combat Hostiles 18 | . . . . . . 2 . 2 1 . . 2 . 1 . 7 . . 3 Parts Fried 35 | . . . . . . 4 . 2 2 . . 1 . 6 . 12 . . 8 Impact Corruptions . | . . . . . . . . . . . . . . . . . . . . Robots Melted 1 | . . . . . . . . . . . . . . . . 1 . . . Combat Hostiles 1 | . . . . . . . . . . . . . . . . 1 . . . Parts Melted 8 | . . . . . 2 . 1 2 . . . . . . 1 . 1 . 1 Heat Transferred 12424 | . . . . . 1665 161 1036 1258 . 3750 150 50 750 100 250 850 300 1443 661 Parts Sabotaged . | . . . . . . . . . . . . . . . . . . . . Parts Stolen . | . . . . . . . . . . . . . . . . . . . . Parts Stripped . | . . . . . . . . . . . . . . . . . . . . Power Chain Reactions 9 | . . . . . . 1 . . . . . 1 . 1 1 2 1 . 2 Missiles Intercepted . | . . . . . . . . . . . . . . . . . . . . Alert | -11 -10 -10 -10 -9 -8 -8 -8 -8 -7 -7 -7 -7 -6 -6 -5 -5 -4 -4 -4 ------- Run | Scr Mat Min Exi Min Mat Gar Mat Gar Fac Was Fac Gar Fac Gar Fac Gar Fac Was Fac Peak Influence 1455 | 10 117 63 . 112 379 539 530 536 348 1455 1118 1208 651 852 878 797 551 140 1196 Average Influence 372 | 3 33 13 . 46 217 376 381 334 153 975 993 1016 141 593 497 519 438 74 550 Maximum Alert Level 4 | . . . . . 1 2 2 2 1 4 4 4 2 3 3 3 2 . 4 Low Security (%) 44 | . . . . . . . . . . . . . . . . . . . . Level 1 16 | . . . . . . . . . . . . . . . . . . . . Level 2 20 | . . . . . . . . . . . . . . . . . . . . Level 3 13 | . . . . . . . . . . . . . . . . . . . . Level 4 6 | . . . . . . . . . . . . . . . . . . . . Level 5 . | . . . . . . . . . . . . . . . . . . . . High Security . | . . . . . . . . . . . . . . . . . . . . Max Security . | . . . . . . . . . . . . . . . . . . . . Squads Dispatched 43 | . 2 . . 1 2 . 2 . 3 . 2 . 6 . 6 . 2 . 17 Investigation 4 | . 1 . . . 2 . . . . . . . . . . . . . 1 Extermination 18 | . . . . . . . . . 3 . 1 . 2 . 3 . 1 . 8 Reinforcement 14 | . 1 . . . . . 2 . . . . . 3 . 1 . 1 . 6 Assault 7 | . . . . 1 . . . . . . 1 . 1 . 2 . . . 2 Garrison . | . . . . . . . . . . . . . . . . . . . . Intercept . | . . . . . . . . . . . . . . . . . . . . Construction Impeded 5 | . . . . . . . . . . . . . 1 . 1 . 1 . 2 Haulers Reinforced 1 | . . . . . . . . . . . . . 1 . . . . . . Stealth | -11 -10 -10 -10 -9 -8 -8 -8 -8 -7 -7 -7 -7 -6 -6 -5 -5 -4 -4 -4 --------- Run | Scr Mat Min Exi Min Mat Gar Mat Gar Fac Was Fac Gar Fac Gar Fac Gar Fac Was Fac Distress Signals 19 | . 1 . . . 5 . 1 . 2 . . . 1 . 1 . . . 8 Communications Jammed . | . . . . . . . . . . . . . . . . . . . . Distress Signals . | . . . . . . . . . . . . . . . . . . . . Times Spotted 374 | . 16 4 . 9 48 10 19 17 12 6 17 22 23 28 26 26 9 . 82 Peak Tracking Total 8 | . 3 2 . 4 5 4 4 4 2 3 5 6 6 6 8 6 3 . 7 Tactical Retreats 42 | . 7 . . . 5 1 2 3 1 . 3 2 2 6 . 1 . . 9 Traps | -11 -10 -10 -10 -9 -8 -8 -8 -8 -7 -7 -7 -7 -6 -6 -5 -5 -4 -4 -4 ------- Run | Scr Mat Min Exi Min Mat Gar Mat Gar Fac Was Fac Gar Fac Gar Fac Gar Fac Was Fac Traps Triggered 37 | . 1 . . . 1 4 1 2 1 . 1 5 . 5 2 8 2 . 4 Indirectly . | . . . . . . . . . . . . . . . . . . . . Trap Hack Attempts . | . . . . . . . . . . . . . . . . . . . . Triggered . | . . . . . . . . . . . . . . . . . . . . Disarmed . | . . . . . . . . . . . . . . . . . . . . Reprogrammed . | . . . . . . . . . . . . . . . . . . . . Reused . | . . . . . . . . . . . . . . . . . . . . Traps Extracted . | . . . . . . . . . . . . . . . . . . . . Installed . | . . . . . . . . . . . . . . . . . . . . Triggered 2 | . . . . 2 . . . . . . . . . . . . . . . Machines | -11 -10 -10 -10 -9 -8 -8 -8 -8 -7 -7 -7 -7 -6 -6 -5 -5 -4 -4 -4 ---------- Run | Scr Mat Min Exi Min Mat Gar Mat Gar Fac Was Fac Gar Fac Gar Fac Gar Fac Was Fac Machines Disabled 62 | . . . . . 4 1 1 4 1 . 1 3 13 2 7 3 5 . 17 Max in Single Turn 13 | . . . . . 3 1 1 2 1 . 1 1 13 1 4 1 5 . 5 Garrison Access 5 | . . . . . . . . . 1 . . . 2 . . . 1 . 1 Garrison Relay 11 | . . . . . . 1 . 2 . . . 3 . 2 . 3 . . . Machines Sabotaged . | . . . . . . . . . . . . . . . . . . . . Garrisons Compromised . | . . . . . . . . . . . . . . . . . . . . Overloaded Fab Kills . | . . . . . . . . . . . . . . . . . . . . Fab Network Shutdowns . | . . . . . . . . . . . . . . . . . . . . Hacking | -11 -10 -10 -10 -9 -8 -8 -8 -8 -7 -7 -7 -7 -6 -6 -5 -5 -4 -4 -4 --------- Run | Scr Mat Min Exi Min Mat Gar Mat Gar Fac Was Fac Gar Fac Gar Fac Gar Fac Was Fac Machines Accessed 76 | . 5 1 1 . 8 . 7 . 12 . 2 . 13 . 9 . 5 . 13 Terminals 39 | . 3 . . . 4 . 5 . 10 . . . 6 . 3 . 2 . 6 Fabricators 4 | . . . . . . . . . . . . . 1 . 2 . 1 . . Repair Stations 6 | . . . . . 1 . . . . . 1 . . . 1 . . . 3 Recycling Units 10 | . 2 . . . 1 . . . 1 . . . 2 . 1 . 1 . 2 Scanalyzers 5 | . . . . . 1 . 1 . . . . . 1 . 1 . . . 1 Garrison Access 10 | . . . . . 1 . 1 . 1 . 1 . 3 . 1 . 1 . 1 Total Hacks 169 | . 8 1 1 . 28 . 21 . 26 . 4 . 29 . 14 . 10 . 27 Successful 95 | . 2 1 1 . 22 . 13 . 13 . 3 . 17 . 8 . 5 . 10 Failed 74 | . 6 . . . 6 . 8 . 13 . 1 . 12 . 6 . 5 . 17 Catastrophic 9 | . 1 . . . . . . . 2 . . . 1 . . . 3 . 2 Database Lockouts . | . . . . . . . . . . . . . . . . . . . . Manual 69 | . 3 . 1 . 8 . 15 . 17 . . . 12 . 2 . 4 . 7 Terminals 100 | . 6 . . . 11 . 18 . 24 . . . 19 . 6 . 6 . 10 Fabricators 8 | . . . . . . . . . . . . . 3 . 3 . 2 . . Repair Stations 23 | . . . . . 10 . . . . . 3 . . . 1 . . . 9 Recycling Units 12 | . 2 . . . 1 . . . 1 . . . 3 . 1 . 1 . 3 Scanalyzers 14 | . . . . . 5 . 2 . . . . . 1 . 2 . . . 4 Garrison Access 10 | . . . . . 1 . 1 . 1 . 1 . 3 . 1 . 1 . 1 Terminal Hacks 17 | . . 1 1 . . . 5 . 3 . . . 5 . 2 . . . . Part Schematic 3 | . . . . . . . . . . . . . 2 . 1 . . . . Open Door 1 | . . 1 . . . . . . . . . . . . . . . . . Machine Index 1 | . . . . . . . 1 . . . . . . . . . . . . Terminal Index 3 | . . . . . . . 1 . 1 . . . 1 . . . . . . Fabricator Index 1 | . . . . . . . . . 1 . . . . . . . . . . Locate Traps 1 | . . . . . . . . . . . . . . . 1 . . . . Hauler Manifests 1 | . . . . . . . 1 . . . . . . . . . . . . Zone Layout 5 | . . . . . . . 2 . 1 . . . 2 . . . . . . EX-Prototype ID Bank 1 | . . . 1 . . . . . . . . . . . . . . . . Fabricator Hacks 5 | . . . . . . . . . . . . . 2 . 1 . 2 . . Load Schematic 2 | . . . . . . . . . . . . . 1 . . . 1 . . Build 3 | . . . . . . . . . . . . . 1 . 1 . 1 . . Repair Station Hacks 17 | . . . . . 10 . . . . . 2 . . . . . . . 5 Scan Component 9 | . . . . . 5 . . . . . 1 . . . . . . . 3 Repair 8 | . . . . . 5 . . . . . 1 . . . . . . . 2 Recycling Unit Hacks 7 | . 1 . . . 1 . . . 1 . . . 1 . 1 . 1 . 1 Retrieve Components 7 | . 1 . . . 1 . . . 1 . . . 1 . 1 . 1 . 1 Scanalyzer 11 | . . . . . 5 . 2 . . . . . . . 2 . . . 2 Insert Component 5 | . . . . . 2 . 1 . . . . . . . 1 . . . 1 Analyze 6 | . . . . . 3 . 1 . . . . . . . 1 . . . 1 Garrison Access Hacks 10 | . . . . . 1 . 1 . 1 . 1 . 3 . 1 . 1 . 1 Unlock Access 5 | . . . . . 1 . 1 . . . 1 . 1 . 1 . . . . Seal Access 5 | . . . . . . . . . 1 . . . 2 . . . 1 . 1 Unauthorized Hacks 72 | . 3 . . . 13 . 13 . 19 . . . 14 . 3 . 2 . 5 Terminals 26 | . 1 . . . 5 . 5 . 8 . . . 5 . . . 1 . 1 Track 8 | . 1 . . . 1 . . . 3 . . . 2 . . . . . 1 Assimilate 4 | . . . . . 2 . 1 . 1 . . . . . . . . . . Botnet 11 | . . . . . 1 . 3 . 3 . . . 3 . . . 1 . . Operators 3 | . . . . . 1 . 1 . 1 . . . . . . . . . . Fabricators 2 | . . . . . . . . . . . . . 1 . 1 . . . . Report 2 | . . . . . . . . . . . . . 1 . 1 . . . . Repair Stations . | . . . . . . . . . . . . . . . . . . . . Recycling Units . | . . . . . . . . . . . . . . . . . . . . Scanalyzers . | . . . . . . . . . . . . . . . . . . . . Garrison Access . | . . . . . . . . . . . . . . . . . . . . Data Cores Recovered 2 | . . . . . . . 1 . . . . . 1 . . . . . . Used 1 | . . . . . . . 1 . . . . . . . . . . . . Hacking Detections 60 | . 4 . . . 5 . 6 . 11 . 2 . 9 . 8 . 4 . 11 Full Trace Events 2 | . . . . . 1 . . . . . . . . . . . . . 1 Feedback Events . | . . . . . . . . . . . . . . . . . . . . Feedback Blocked . | . . . . . . . . . . . . . . . . . . . . Robot Schematics Acquired . | . . . . . . . . . . . . . . . . . . . . Robots Built . | . . . . . . . . . . . . . . . . . . . . Matter . | . . . . . . . . . . . . . . . . . . . . Time . | . . . . . . . . . . . . . . . . . . . . Total Robot Build Rating . | . . . . . . . . . . . . . . . . . . . . Part Schematics Acquired 8 | . . . . . 2 . 1 . . . . . 2 . 2 . . . 1 Parts Built 5 | . . . . . . . . . . . . . 1 . 2 . 2 . . Matter 658 | . . . . . . . . . . . . . 146 . 256 . 256 . . Time 329 | . . . . . . . . . . . . . 73 . 128 . 128 . . Total Part Build Rating 35 | . . . . . . . . . . . . . 3 . 16 . 16 . . Parts Repaired 8 | . . . . . 5 . . . . . 1 . . . . . . . 2 Time 347 | . . . . . 240 . . . . . 44 . . . . . . . 63 Parts Recycled . | . . . . . . . . . . . . . . . . . . . . Recycled Matter . | . . . . . . . . . . . . . . . . . . . . Retrieved Matter . | . . . . . . . . . . . . . . . . . . . . Retrieved Components 21 | . 2 . . . 3 . . . 2 . . . 1 . 2 . 1 . 10 Parts Scanalyzed 5 | . . . . . 2 . 1 . . . . . . . 1 . . . 1 Part Schematics Acquired 5 | . . . . . 2 . 1 . . . . . . . 1 . . . 1 Parts Damaged 1 | . . . . . 1 . . . . . . . . . . . . . . Bothacking | -11 -10 -10 -10 -9 -8 -8 -8 -8 -7 -7 -7 -7 -6 -6 -5 -5 -4 -4 -4 ------------ Run | Scr Mat Min Exi Min Mat Gar Mat Gar Fac Was Fac Gar Fac Gar Fac Gar Fac Was Fac Used RIF Installer 4 | . . . . . . 1 . . . . . 1 . 1 . 1 . . . Coupler Efficiency 1 | . . . . . . . . . . . . . . . . 1 . . . Patrol Navigation 1 | . . . . . . . . . . . . 1 . . . . . . . Autooverride 1 | . . . . . . . . . . . . . . 1 . . . . . Robots Hacked 38 | . . . . . . . 1 . 1 6 . 6 1 5 2 . 2 . 14 Non-combat 11 | . . . . . . . 1 . 1 . . . 1 . 1 . 1 . 6 Combat 27 | . . . . . . . . . . 6 . 6 . 5 1 . 1 . 8 Autooverrided 2 | . . . . . . . . . . . . . . . . . 1 . 1 Robot Hacks Applied 51 | . . . . . . . 3 . 1 12 . 6 4 5 6 . 1 . 13 parse_system 3 | . . . . . . . . . . 3 . . . . . . . . . start_evac 1 | . . . . . . . . . . . . . . . 1 . . . . find_chute 2 | . . . . . . . . . 1 . . . . . . . 1 . . map_walls 1 | . . . . . . . . . . . . . . . . . . . 1 drop_inventory 1 | . . . . . . . . . . . . . . . . . . . 1 purge_threat 9 | . . . . . . . 2 . . . . . 3 . 4 . . . . block_reporting 1 | . . . . . . . . . . . . . 1 . . . . . . map_route 3 | . . . . . . . . . . . . . . . . . . . 3 ignore_targets 9 | . . . . . . . . . . 9 . . . . . . . . . link_fov 1 | . . . . . . . . . . . . . . . . . . . 1 scatter_targeting 1 | . . . . . . . . . . . . . . 1 . . . . . overload_power 1 | . . . . . . . . . . . . . . . . . . . 1 amplify_resonance 2 | . . . . . . . . . . . . 1 . 1 . . . . . overwrite_iff 1 | . . . . . . . . . . . . . . . . . . . 1 formatsys_low 1 | . . . . . . . 1 . . . . . . . . . . . . formatsys_high 14 | . . . . . . . . . . . . 5 . 3 1 . . . 5 Relay Couplers Released 47 | . . . . . . 5 . 8 . . . 13 . 6 . 12 . . 3 Machine Destruction 47 | . . . . . . 5 . 8 . . . 13 . 6 . 12 . . 3 Attached 22 | . . . . . . . 1 . . 2 . 3 2 4 1 1 2 . 6 Robots Rewired 6 | . . . . . . 6 . . . . . . . . . . . . . Allies Hacked 5 | . . . . . . . . . . . . . . . 1 . . . 4 Hacks Repelled . | . . . . . . . . . . . . . . . . . . . . Allies | -11 -10 -10 -10 -9 -8 -8 -8 -8 -7 -7 -7 -7 -6 -6 -5 -5 -4 -4 -4 -------- Run | Scr Mat Min Exi Min Mat Gar Mat Gar Fac Was Fac Gar Fac Gar Fac Gar Fac Was Fac Total Allies 33 | . . 3 . 3 1 6 2 . 1 . . 5 . 3 1 . 1 . 7 Largest Group 6 | . . 3 3 6 5 3 3 1 2 . . 3 . 3 1 . 1 . 2 Highest-Rated Group 117 | . . 40 40 117 109 114 86 10 36 . . 53 . 82 30 . 56 . 105 Highest-Rated Ally 56 | . . 16 16 31 31 38 38 10 26 . . 21 . 32 30 . 56 . 56 Total Orders 30 | . . . . . 8 . . 4 14 . . . . . . . . . 4 STAY 6 | . . . . . 1 . . 1 3 . . . . . . . . . 1 GOTO 9 | . . . . . 3 . . 1 4 . . . . . . . . . 1 FOLLOW 14 | . . . . . 4 . . 2 7 . . . . . . . . . 1 EXPLORE 1 | . . . . . . . . . . . . . . . . . . . 1 Ally Attacks 207 | . . 19 . 35 46 15 39 . . . . 14 . 9 2 . 3 . 25 Total Damage 4109 | . . 195 . 436 637 355 1254 . . . . 155 . 163 48 . 116 . 750 Kills 42 | . . 4 . 5 6 4 9 . . . . . . 1 . . 1 . 12 Allies Corrupted . | . . . . . . . . . . . . . . . . . . . . Allies Melted . | . . . . . . . . . . . . . . . . . . . . Intel | -11 -10 -10 -10 -9 -8 -8 -8 -8 -7 -7 -7 -7 -6 -6 -5 -5 -4 -4 -4 ------- Run | Scr Mat Min Exi Min Mat Gar Mat Gar Fac Was Fac Gar Fac Gar Fac Gar Fac Was Fac Robot Analysis Total . | . . . . . . . . . . . . . . . . . . . . Derelict Logs Recovered 4 | . . 2 . 2 . . . . . . . . . . . . . . . Drone Launches 2 | . . . . . . . . . . . . . . . . . . . 2 Drone Recoveries . | . . . . . . . . . . . . . . . . . . . . Exploration | -11 -10 -10 -10 -9 -8 -8 -8 -8 -7 -7 -7 -7 -6 -6 -5 -5 -4 -4 -4 ------------- Run | Scr Mat Min Exi Min Mat Gar Mat Gar Fac Was Fac Gar Fac Gar Fac Gar Fac Was Fac Turns Passed 27374 | 111 1325 879 413 965 2891 1166 884 989 2270 688 738 1009 2891 815 1361 2229 821 750 4179 Spaces Moved 13291 | 74 724 605 378 619 936 733 414 581 1170 266 417 440 1549 473 742 1007 382 394 1387 Core 2 | 2 . . . . . . . . . . . . . . . . . . . Treads 2705 | . 638 296 . . 780 . . . . . . 334 165 62 68 302 3 . 57 Legs . | . . . . . . . . . . . . . . . . . . . . Wheels 10584 | 72 86 309 378 619 156 733 414 581 1170 266 417 106 1384 411 674 705 379 394 1330 Hover . | . . . . . . . . . . . . . . . . . . . . Flight . | . . . . . . . . . . . . . . . . . . . . Fastest Speed 50 | 50 90 100 100 110 110 110 130 120 140 120 130 130 120 110 120 110 130 140 130 Average Speed 142 | 88 158 139 105 110 202 123 132 121 140 146 130 169 130 121 126 156 148 151 152 Slowest Speed 240 | 90 180 180 110 110 220 140 140 140 140 150 130 180 180 180 210 210 210 160 240 Overloaded Moves . | . . . . . . . . . . . . . . . . . . . . Propulsion Burnouts . | . . . . . . . . . . . . . . . . . . . . Robots Hopped . | . . . . . . . . . . . . . . . . . . . . Cave-ins Triggered 8 | . . . . . . . . . . . . . . . . . . . 8 Exploration Rate (%) 55 | 4 96 99 71 95 64 54 44 56 27 82 13 79 42 63 21 78 7 90 33 Regions Visited 19 Branch Regions 3 Pre-discovered Areas 2 | . . 1 . 1 . . . . . . . . . . . . . . . Known Exits Taken 5 | . . . . . 1 . 1 . . . 1 . 1 . 1 . . . . Unknown Exits Taken 5 | 1 1 1 1 1 . . . . . . . . . . . . . . . Scrap Searched 2 | . . 1 . 1 . . . . . . . . . . . . . . . Spaces Dug 366 | . . . . 7 56 . 25 . 70 . 7 6 65 1 17 2 23 . 87 Terrain Destroyed 923 | . 6 . . 23 92 10 25 32 70 . 48 36 161 37 90 18 73 . 202 Melee 331 | . . . . 7 52 . 17 . 55 . 7 . 65 . 17 2 23 . 86 Projectile 38 | . . . . . . . . . 1 . 2 . 4 2 7 . . . 22 AOE 554 | . 6 . . 16 40 10 8 32 14 . 39 36 92 35 66 16 50 . 94 Actions | -11 -10 -10 -10 -9 -8 -8 -8 -8 -7 -7 -7 -7 -6 -6 -5 -5 -4 -4 -4 --------- Run | Scr Mat Min Exi Min Mat Gar Mat Gar Fac Was Fac Gar Fac Gar Fac Gar Fac Was Fac Total 19625 | 107 817 628 394 876 1708 951 665 776 1661 463 557 651 2208 642 1024 1492 554 460 2991 Wait 3614 | 10 6 8 6 222 551 67 171 66 336 83 70 99 435 36 99 222 47 2 1078 Move 13275 | 73 723 604 377 618 936 732 414 580 1170 265 417 438 1549 471 742 1004 382 393 1387 Hop . | . . . . . . . . . . . . . . . . . . . . Pick Up 257 | 10 14 3 5 5 29 15 6 16 14 3 5 7 20 6 20 24 27 2 26 Fast Attach 88 | 7 . . . . 6 1 1 2 1 6 1 5 11 4 8 11 3 3 18 Attach 150 | . 1 . . . 10 2 1 8 4 1 6 7 12 7 17 24 12 1 37 Detach 95 | . . . . . 4 . . 2 1 4 2 5 14 1 13 21 3 1 24 Swap 320 | . 13 3 2 8 31 9 13 15 35 5 19 13 23 21 25 15 15 3 52 Drop 209 | 2 13 3 4 6 15 13 9 16 14 1 2 5 20 3 13 19 18 7 26 Fire 895 | 5 47 7 . 6 51 24 26 55 8 95 26 50 34 56 70 93 24 48 170 Melee 514 | . . . . 11 75 1 24 . 78 . 9 . 90 1 17 13 23 . 172 Ram 1 | . . . . . . . . . . . . . . 1 . . . . . Kick . | . . . . . . . . . . . . . . . . . . . . Crush . | . . . . . . . . . . . . . . . . . . . . Escape Stasis 143 | . . . . . . 24 . 16 . . . 22 . 35 . 46 . . . Rewire 63 | . . . . . . 63 . . . . . . . . . . . . . Trap . | . . . . . . . . . . . . . . . . . . . . Miscellaneous 1 | . . . . . . . . . . . . . . . . . . . 1 Route ------- -11/Scrapyard -10/Materials (discovered 4 exits: [*Mat x3] / *Min) -10/Mines (discovered 3 exits: [*Mat x2] / *Exi) -10/Exiles -9/Mines (discovered 2 exits: *Mat x2) -8/Materials (discovered 4 exits: *Fac x2 / [*Sto] / Gar) -8/Garrison (discovered 2 exits: *Mat x2) -8/Materials (discovered 2 exits: *Fac / Gar) -8/Garrison (discovered 2 exits: *Fac x2) -7/Factory (discovered 2 exits: *Fac / [*Low]) -7/Waste -7/Factory -7/Garrison (discovered 3 exits: *Fac x3) -6/Factory (discovered 3 exits: *Low x2 / Gar) -6/Garrison (discovered 3 exits: *Fac x3) -5/Factory (discovered 2 exits: *Fac / Gar) -5/Garrison (discovered 3 exits: *Fac x3) -4/Factory -4/Waste -4/Factory (discovered 2 exits: [Res] / [*Upp]) History --------- Turn | Location | Event 19 | -11/Scrapyard | Discovered new exit (range 16) 112 | -11/Scrapyard | Entered Materials 309 | -10/Materials | Build established: Mutant 505 | -10/Materials | Discovered new exit (range 10) 732 | -10/Materials | Discovered new exit (range 14) 1032 | -10/Materials | Discovered new exit (range 5) 1214 | -10/Materials | Discovered new exit (range 12) 1437 | -10/Materials | Entered Mines 1447 | -10/Mines | Met a Derelict bent on vengeance 1622 | -10/Mines | Learned Materials emergency access door positions 1668 | -10/Mines | Met a Derelict who couldn't figure out how to use a Trap Extractor 1790 | -10/Mines | Discovered new exit (range 10) 1878 | -10/Mines | Discovered new exit (range 8) 1879 | -10/Mines | Learned location of Storage (-8) 1954 | -10/Mines | Deemed a non-threat by the Exiles lab entrance 1956 | -10/Mines | Discovered new exit (range 5) 2010 | -10/Mines | Learned Materials terminal intel 2070 | -10/Mines | Assisted by bots powering up and referring to "LRC-V3" 2316 | -10/Mines | Entered Exiles 2316 | -10/Exiles | Accompanied by 3 allies 2341 | -10/Exiles | Met 8R-AWN 2356 | -10/Exiles | Met EX-HEX 2396 | -10/Exiles | Met EX-DEC 2553 | -10/Exiles | Met EX-BIN 2569 | -10/Exiles | Aligned with FarCom system 2570 | -10/Exiles | Given EX-Vault access code 2597 | -10/Exiles | Opened EX-Vault 2608 | -10/Exiles | Found Modified TNC 2612 | -10/Exiles | Found Lightpack 2.0 2635 | -10/Exiles | Warned to stay clear of 0b10 Research branches 2704 | -10/Exiles | Discovered new exit (range 14) 2729 | -10/Exiles | Stole two prototypes: Lightpack 2.0, Modified TNC 2729 | -10/Exiles | Entered Mines 2729 | -9/Mines | Accompanied by 3 allies 2730 | -9/Mines | Met a Derelict testing a Signal Generator 2737 | -9/Mines | Found Signal Generator 2794 | -9/Mines | Build established: Hauler-Mutant 3216 | -9/Mines | A weapon hastily lodged in a ceiling crevice suddenly fell to the ground 3234 | -9/Mines | Learned location of Zion (-7) 3235 | -9/Mines | Discovered new exit (range 5) 3244 | -9/Mines | Found a damaged Exp. Sensor Array with a note attached 3247 | -9/Mines | Found Prototype Device 3284 | -9/Mines | Learned 4 Materials zone layouts 3541 | -9/Mines | Discovered new exit (range 8) 3694 | -9/Mines | Entered Materials 3694 | -8/Materials | Accompanied by 5 allies 3694 | -8/Materials | Evolved 4 slots: Utility x4 3695 | -8/Materials | Identified exit to Factory 3697 | -8/Materials | Loaded intel: 12 terminal locations 3699 | -8/Materials | Led the pair of lost Derelicts to an unsafe place 3699 | -8/Materials | Identified Exp. Sensor Array 4497 | -8/Materials | Discovered new exit (range 15) 5534 | -8/Materials | Repaired Exp. Sensor Array 5585 | -8/Materials | Discovered exit to Factory (range 15) 6020 | -8/Materials | Repaired Arm. Wheel 6053 | -8/Materials | Repaired Arm. Wheel 6092 | -8/Materials | Repaired Hrd. Medium Armor Plating 6138 | -8/Materials | Repaired Imp. Heat Sink 6585 | -8/Materials | Identified exit to Garrison 6585 | -8/Materials | Entered Garrison 6735 | -8/Garrison | Triggered checkpoint 6886 | -8/Garrison | Triggered checkpoint 6930 | -8/Garrison | Discovered new exit (range 12) 6984 | -8/Garrison | Build established: Mutant 7098 | -8/Garrison | Discovered new exit (range 8) 7115 | -8/Garrison | Installed Relay Interface Framework 7392 | -8/Garrison | Triggered checkpoint 7427 | -8/Garrison | Garrison Relay disabled 7460 | -8/Garrison | Triggered checkpoint 7721 | -8/Garrison | Build established: Hauler-Mutant 7751 | -8/Garrison | Entered Materials 7751 | -8/Materials | Accompanied by 2 allies 8434 | -8/Materials | Discovered exit to Factory (range 12) 8635 | -8/Materials | Identified exit to Garrison 8635 | -8/Materials | Entered Garrison 8635 | -8/Garrison | Accompanied by 1 ally 8718 | -8/Garrison | Triggered checkpoint 8851 | -8/Garrison | Discovered exit to Factory (range 9) 8891 | -8/Garrison | Triggered checkpoint 8940 | -8/Garrison | Spotted B-75 Beast 8941 | -8/Garrison | Spotted B-75 Beast 8965 | -8/Garrison | Discovered exit to Factory (range 15) 9041 | -8/Garrison | Triggered checkpoint 9147 | -8/Garrison | Triggered checkpoint 9201 | -8/Garrison | Garrison Relay disabled 9462 | -8/Garrison | Triggered checkpoint 9502 | -8/Garrison | Core integrity fell below 50% 9524 | -8/Garrison | Lost 4 parts (1p1u2w) 9543 | -8/Garrison | Garrison Relay disabled 9624 | -8/Garrison | Entered Factory 9624 | -7/Factory | Accompanied by 1 ally 9624 | -7/Factory | Evolved 2 slots: Utility x2 9626 | -7/Factory | FarCom data flow suspended 10132 | -7/Factory | Found Prototype Launcher 10650 | -7/Factory | Discovered new exit (range 5) 11828 | -7/Factory | Discovered new exit (range 15) 11894 | -7/Factory | Sucked down chute 11894 | -7/Factory | Entered Waste 11909 | -7/Waste | EMP discharged 11909 | -7/Waste | Spotted C-40 Crusher 11916 | -7/Waste | Spotted C-40 Crusher 11929 | -7/Waste | Spotted C-40 Crusher 11979 | -7/Waste | Spotted C-40 Crusher 12009 | -7/Waste | EMP discharged 12009 | -7/Waste | System corruption reached 10% 12012 | -7/Waste | Destroyed C-40 Crusher 12023 | -7/Waste | Spotted C-40 Crusher 12056 | -7/Waste | Crushed by Compactor (1 part destroyed, 1 dropped) 12074 | -7/Waste | Destroyed C-40 Crusher 12084 | -7/Waste | Found Damper Plating 12109 | -7/Waste | EMP discharged 12176 | -7/Waste | Spotted C-40 Crusher 12209 | -7/Waste | EMP discharged 12221 | -7/Waste | Discovered new exit (range 10) 12309 | -7/Waste | EMP discharged 12321 | -7/Waste | Destroyed C-40 Crusher 12403 | -7/Waste | Destroyed C-40 Crusher 12409 | -7/Waste | EMP discharged 12509 | -7/Waste | EMP discharged 12582 | -7/Waste | Entered Factory 12677 | -7/Factory | Repaired Lyr. Light Armor Plating 12982 | -7/Factory | First assault squad dispatched 13301 | -7/Factory | Destroyed 7 combat bots 13320 | -7/Factory | Identified exit to Garrison 13320 | -7/Factory | Entered Garrison 13327 | -7/Garrison | Expanded RIF knowledge: Patrol Navigation 13387 | -7/Garrison | Triggered checkpoint 13417 | -7/Garrison | Triggered checkpoint 13548 | -7/Garrison | Discovered new exit (range 8) 13577 | -7/Garrison | Triggered checkpoint 13631 | -7/Garrison | Garrison Relay disabled 13807 | -7/Garrison | Discovered new exit (range 10) 13832 | -7/Garrison | Triggered checkpoint 13875 | -7/Garrison | Garrison Relay disabled 14016 | -7/Garrison | Triggered checkpoint 14086 | -7/Garrison | Triggered checkpoint 14187 | -7/Garrison | Garrison Relay disabled 14302 | -7/Garrison | Discovered new exit (range 14) 14326 | -7/Garrison | Identified exit to Factory 14329 | -7/Garrison | Entered Factory 14329 | -6/Factory | Evolved 2 slots: Utility x2 14496 | -6/Factory | Build established: Bothacker-Mutant 14722 | -6/Factory | Discovered new exit (range 6) 14728 | -6/Factory | Identified exit to Lower Caves 15627 | -6/Factory | Discovered exit to Lower Caves (range 11) 15880 | -6/Factory | Build established: Hauler-Mutant 17129 | -6/Factory | First assault squad dispatched 17171 | -6/Factory | Fabricated Hacking Suite (x1) 17220 | -6/Factory | Identified exit to Garrison 17220 | -6/Factory | Entered Garrison 17227 | -6/Garrison | Expanded RIF knowledge: Autooverride 17263 | -6/Garrison | Triggered checkpoint 17441 | -6/Garrison | Triggered checkpoint 17489 | -6/Garrison | Lost 4 parts (4u) 17529 | -6/Garrison | Discovered new exit (range 15) 17634 | -6/Garrison | Garrison Relay disabled 17682 | -6/Garrison | Triggered checkpoint 17713 | -6/Garrison | Triggered checkpoint 17752 | -6/Garrison | Garrison Relay disabled 17801 | -6/Garrison | Discovered new exit (range 10) 17838 | -6/Garrison | Triggered checkpoint 17916 | -6/Garrison | Triggered checkpoint 17929 | -6/Garrison | Build established: Bothacker-Mutant 17996 | -6/Garrison | Triggered checkpoint 18001 | -6/Garrison | Discovered new exit (range 14) 18032 | -6/Garrison | Identified exit to Factory 18035 | -6/Garrison | Entered Factory 18035 | -5/Factory | Accompanied by 1 ally 18035 | -5/Factory | Evolved 2 slots: Utility x2 18237 | -5/Factory | Fabricated Imp. Heavy Siege Treads (x2) 18366 | -5/Factory | Discovered new exit (range 15) 18469 | -5/Factory | Identified exit to Factory 18635 | -5/Factory | First assault squad dispatched 18856 | -5/Factory | Destroyed 8 combat bots 19396 | -5/Factory | Identified exit to Garrison 19396 | -5/Factory | Entered Garrison 19500 | -5/Garrison | Build established: Hauler-Mutant 19558 | -5/Garrison | Lost 7 parts (1n3u3w) 19653 | -5/Garrison | Garrison Relay disabled 19736 | -5/Garrison | Triggered checkpoint 19774 | -5/Garrison | Destroyed 8 combat bots 19845 | -5/Garrison | Discovered exit to Factory (range 13) 19908 | -5/Garrison | Expanded RIF knowledge: Coupler Efficiency 19958 | -5/Garrison | Triggered checkpoint 20165 | -5/Garrison | Garrison Relay disabled 20316 | -5/Garrison | Triggered checkpoint 20451 | -5/Garrison | Triggered checkpoint 20529 | -5/Garrison | Build established: Bothacker-Mutant 20610 | -5/Garrison | Discovered exit to Factory (range 12) 20675 | -5/Garrison | Triggered checkpoint 20760 | -5/Garrison | Discovered exit to Factory (range 10) 20795 | -5/Garrison | Triggered checkpoint 20901 | -5/Garrison | Garrison Relay disabled 21183 | -5/Garrison | Build established: Botlord-Mutant 21625 | -5/Garrison | Entered Factory 21625 | -4/Factory | Evolved 2 slots: Utility x2 22010 | -4/Factory | Fabricated Imp. Heavy Siege Treads? 22446 | -4/Factory | Sucked down chute 22446 | -4/Factory | Entered Waste 22446 | -4/Waste | The area was eerily silent 22728 | -4/Waste | Build established: Bothacker-Mutant 22838 | -4/Waste | Discovered new exit (range 12) 22897 | -4/Waste | Found Prototype Device 22897 | -4/Waste | Identified Exp. Phase Shifter 22995 | -4/Waste | Found Damper Plating 23003 | -4/Waste | Found Damper Plating 23195 | -4/Waste | Identified exit to Factory 23196 | -4/Waste | Entered Factory 23572 | -4/Factory | Discovered new exit (range 73) 24730 | -4/Factory | P-70 Sage assimilated allied Veteran 7a 25590 | -4/Factory | Lost 4 parts (1n1u2w) 25957 | -4/Factory | Found Quantum Capacitor 26162 | -4/Factory | Repaired Exp. Sensor Array 26409 | -4/Factory | Repaired Lrg. Storage Unit 26647 | -4/Factory | Discovered new exit (range 6) 27196 | -4/Factory | First assault squad dispatched 27313 | -4/Factory | Crushed by falling debris 27326 | -4/Factory | Crushed by falling debris 27333 | -4/Factory | Crushed by falling debris 27339 | -4/Factory | Crushed by falling debris 27339 | -4/Factory | Core integrity fell below 50% 27350 | -4/Factory | Crushed by falling debris 27351 | -4/Factory | Build established: Hauler-Mutant 27352 | -4/Factory | System corruption reached 10% 27353 | -4/Factory | Crushed by falling debris 27360 | -4/Factory | Crushed by falling debris 27360 | -4/Factory | Core integrity fell below 20% 27361 | -4/Factory | Crushed by falling debris 27375 | -4/Factory | Destroyed by G-73 Enforcer with Phase Gun Last Messages --------------- 27361_ The unstable cave ceiling collapses. 27361_ Crushed by falling debris. 27361_ Lrg. Storage Unit destroyed. 27363_ System corrupted: Enh. Coil Gun targeting data glitched. 27363_ Slug penetrates B-60 Warrior. 27363_ Slug penetrates Earth. 27363_ Slug penetrates B-60 Warrior. 27364_ Critical hit. 27364_ Enh. Coil Gun destroyed. 27365_ System corrupted: IFF burst signal emitted. 27366_ Hcp. Storage Unit destroyed. 27366_ Hvy. Neutron Cannon crushed and broken. 27366_ Exp. Sensor Array crushed and broken. 27366_ Mic. Fission Core crushed and broken. 27366_ Imp. Arc Projector crushed and broken. 27366_ Imp. Plasma Cutter crushed and broken. 27366_ Imp. Medium Armor Plating crushed and broken. 27370_ Enh. Coil Gun destroyed. 27372_ Med. Storage Unit destroyed. 27372_ Modified TNC crushed and broken. Map ----- +----------------------------------------------------+ | ???"""" "" # ## """ ! | | ??""""" """ # %= = ## "R | | ??""""" R" # ## """ """" | | """""" """ # #"##[""" """" | | # # *!=## ""%# """" | | ##########/##### #######%#?# ""S # """" | | ??????# ## ##????"[#?# "" # ]!! """" | | ####### ####### ### # !! """" | | ?# """ # ]!! """" | | % + """ # | | # """ " | | ####### ########### ######## #### | | ??????# #### ###??#;#############?????###??? | | ??????#########??# #????# ! ###########?? | | ?????????????????# #????# # #?? | | ?????????????????# #????# """ """ [ # ### | | ?????????????????# #????# """ """ # | | ###??############# ##???# """ """ # | | ??????? ?#???# %/" < | | ??????? ?#???# """ """% # | | ??????? ?##??#!""" """ % # | | ################# ??# #?#=""" """ |# ### | | ????????????????#???##!##!g[[ *# #?? | | ????????????????#???#?#|#gm*= ## ##?? | | ????????????????#???#??#blg% ## #??? | | ????????????????+???#???#@############# #??? | | ????????????????#???#???####????# ##### #??? | | ????????????????#???#????###????###??#" #??? | | ????????????????#???#????????????????## #??? | | ????????????????#???#?????????????????# #??? | | ????????????#####???#?????????????????# #??? | | ??????????????????????????????????????# #??? | | ??????????????????????????????????????# #??? | | ??????????????????????????????????????# #??? | | ??????????????????????????????????????# #??? | | ??????????????????????????????????????? #??? | | ??????????????????????????????????????? #??? | | ??????????????????????????????????????? #??? | | ??????????????????????????????????????? #??? | | ??????????????????????????????????????? #??? | | ??????????????????????????????????????? ?????? | | ??????????????????????????????????????? ???????? | | ?????????????????????????????????????????????????? | | ?????????????????????????????????????????????????? | | ?????????????????????????????????????????????????? | | ?????????????????????????????????????????????????? | | ?????????????????????????????????????????????????? | | ?????????????????????????????????????????????????? | | ?????????????????????????????????????????????????? | | ?????????????????????????????????????????????????? | +----------------------------------------------------+ Best States ------------- Heat Dissipation 56 Coolant Potential 80 Energy Generation 21 Energy Capacity 825 Matter Stores 300 Matter Capacity 300 Sight Range 16 Robot Scan Range 30 Terrain Scan Density 10 Additional Mass Support 9 Armor Coverage 3000 Resistance: TH 10 Resistance: EM 90 Core Shielding 20 Phase Shifting 10 Evasion (%) 50 Targeting Accuracy 8 Recoil Reduction 2 Offensive Hacking 24 Item Schematics ----------------- Arm. Wheel | -8/Materials | Scanalyzed Exp. Sensor Array | -8/Materials | Scanalyzed Hcp. Storage Unit | -8/Materials | Scanalyzed Imp. Arc Projector | -6/Factory | Hacked Hacking Suite | -6/Factory | Hacked Adv. Force Field | -5/Factory | Hacked Imp. Heavy Siege Treads | -5/Factory | Scanalyzed Biometal Heavy Treads | -4/Factory | Scanalyzed Robot Schematics ------------------ None Fabricated ------------ Hacking Suite | x1 | -6/Factory Imp. Heavy Siege Treads | x2 | -5/Factory | Preloaded Imp. Heavy Siege Treads | x2 | -4/Factory Alien Tech Used ----------------- None Achievements -------------- None Challenges ------------ None Game ------ Seed GodPhasingInterrupter Manual? 0 Play Time 06:12:35 Cumulative 804.5 hours Start 2019.10.27 @ 16:16:24 End 2019.10.28 @ 23:32:19 Sessions 5 Manual Loads 0 Difficulty Rogue Special Mode None Game No. 298 Rogue 298 Adventurer 0 Explorer 0 Win Type - Total 20 Types 10/1/7/0/0/0/2 Lore% 95 Gallery% 94 Achievement% 79 Wizard Run 0 Options --------- ASCII 0 Keyboard 0 Movement Vi Keybinds 0 Fullscreen 0 Font 12/Crisp Map View 76x50 Tactical HUD 1 Map Filters NONE Filters NONE Steam 1 RUN: 3471f62a-3b5e-4c81-a333-d625752c7506